fUSD/lending_fUSD_20260314
["ID","MTS","AMOUNT","RATE_DAILY","PERIOD"]
[408354851,1773489041538,-500.0,0.00019708,2]
[408354852,1773489041547,-500.0,0.00019708,2]
[408354853,1773489041557,-150.0,0.00019708,2]
[408354854,1773489041566,-150.0,0.00019708,2]
[408354855,1773489041575,-500.0,0.00019708,2]
[408354856,1773489041585,-150.0,0.00019708,2]
[408354857,1773489041594,-150.0,0.00019708,2]
[408354858,1773489041603,-488.0,0.00019708,2]
[408354859,1773489041613,-1687.14174273,0.0001971,2]
[408354860,1773489041623,-466.66,0.00019711,2]
[408354861,1773489041632,-500.0,0.00019716,2]
[408354862,1773489041642,-500.0,0.00019716,2]
[408354863,1773489041651,-6683.0,0.00019726,2]
[408354864,1773489041661,-5762.50605033,0.00019748,2]
[408354865,1773489041671,-183.30422924,0.00019753,2]
[408354866,1773489041680,-1687.14174273,0.00019758,2]
[408354867,1773489041689,-500.0,0.00019762,2]
[408354868,1773489041700,-500.0,0.00019762,2]
[408354869,1773489041710,-500.0,0.00019762,2]
[408354870,1773489041719,-500.0,0.00019762,2]
[408354871,1773489041728,-3653.0,0.00019763,5]
[408354872,1773489041739,-150.0,0.00019763,2]
[408354873,1773489041748,-150.0,0.00019763,2]
[408354874,1773489041758,-200.0,0.00019763,2]
[408354875,1773489041767,-500.0,0.00019763,2]
[408354876,1773489041776,-500.0,0.00019763,2]
[408354877,1773489041785,-150.0,0.00019763,2]
[408354878,1773489041795,-150.0,0.00019763,2]
[408354879,1773489041804,-150.0,0.00019763,2]
[408354880,1773489041813,-150.0,0.00019763,2]
[408354881,1773489041823,-150.0,0.00019763,2]
[408354882,1773489041832,-500.0,0.00019763,2]
[408354883,1773489041841,-500.0,0.00019763,2]
[408354884,1773489041851,-150.0,0.00019763,2]
[408354885,1773489041860,-150.0,0.00019763,2]
[408354886,1773489041869,-500.0,0.00019763,2]
[408354887,1773489041878,-150.0,0.00019763,2]
[408354888,1773489041888,-488.0,0.00019763,2]
[408354889,1773489041898,-134723.64016287,0.00019763,2]
[408354890,1773489041915,-558.69299275,0.00019763,2]
[408354891,1773489041930,-585.46002988,0.00019763,2]
[408354892,1773489041942,-956.1785563,0.00019763,2]
[408354893,1773489041953,-6543.9,0.00019763,2]
[408354894,1773489041968,-847.0,0.00019763,2]
[408354895,1773489042107,-606.6000014,0.00019763,2]
[408354896,1773489042121,-1724269.73469209,0.00019763,2]
[408354905,1773489046244,-333.83622396,0.00019763,2]
[408354906,1773489046257,-11636.40285672,0.00019763,2]
[408354907,1773489046297,-474.5069508,0.00019763,2]
[408354908,1773489046309,-36695.80685104,0.00019763,2]
[408354912,1773489549749,357.0,0.00013682,7]
[408354930,1773490231555,-250.0,0.00015,2]
[408354931,1773490231566,-87.79528256,0.00015,20]
[408354932,1773490231580,-91.20471744,0.00015,20]
[408354933,1773490231589,-274.0,0.00015,2]
[408354934,1773490231601,-100.73643676,0.0001519,2]
[408354935,1773490231616,-433.40923862,0.0001519,2]
[408354936,1773490231625,-5000.00051524,0.000162,5]
[408354937,1773490231638,-729.8871767,0.00016279,2]
[408354938,1773490231648,-160.0,0.0001634,7]
[408354939,1773490231658,-1200.0,0.00016498,2]
[408354940,1773490231668,-2500.0,0.000165,2]
[408354941,1773490231679,-1828.64394019,0.000165,2]
[408354942,1773490231689,-166.66,0.00016555,2]
[408354943,1773490231699,-1034.90239287,0.00016786,2]
[408354944,1773490231709,-166.66,0.00016903,2]
[408354946,1773490231720,-508.0,0.00017,2]
[408354948,1773490231730,-248.25,0.00017006,2]
[408354950,1773490231739,-166.66,0.00017252,2]
[408354952,1773490231749,-189.92,0.00017336,2]
[408354954,1773490231758,-208.1,0.00017485,2]
[408354956,1773490231768,-166.66,0.000176,2]
[408354958,1773490231778,-28204.93,0.00017615,2]
[408354960,1773490231787,-166.66,0.00017949,2]
[408354962,1773490231797,-248.25,0.00017951,2]
[408354964,1773490231807,-13577.27606259,0.00017999,2]
[408354967,1773490231964,-11246.5454615,0.00017999,2]
[408354968,1773490231975,-18867.39969563,0.00017999,2]
[408354969,1773490231985,-1867.97816567,0.00018,5]
[408354970,1773490231995,-12547.0560381,0.00018,2]
[408354971,1773490232006,-19661.41596284,0.00018,2]
[408354972,1773490232016,-994.61,0.00018008,2]
[408354973,1773490232026,-1680.0,0.00018119,2]
[408354974,1773490232034,-166.66,0.00018297,2]
[408354975,1773490232044,-1535.65911036,0.00018383,3]
[408354976,1773490232053,-200.0,0.00018477,2]
[408354977,1773490232063,-498.01575293,0.00018589,2]
[408354978,1773490232072,-1000.0,0.000186,2]
[408354979,1773490232082,-200.0,0.000186,6]
[408354980,1773490232092,-1082.0588,0.00018624,2]
[408354981,1773490232101,-2067.55016944,0.00018673,2]
[408354984,1773490237451,-4569.31049743,0.00018673,2]
[408354985,1773490237460,-787.6229848,0.000187,2]
[408354986,1773490237470,-792.76651777,0.000187,2]
[408354987,1773490237481,-1733.67748223,0.000187,2]
[408354988,1773490237490,-174.164,0.000187,2]
[408354989,1773490237500,-201.3877726,0.000187,2]
[408354990,1773490237512,-500.0,0.000187,6]
[408354991,1773490237526,-159.65926722,0.000187,2]
[408354992,1773490237539,-843.57087139,0.000187,2]
[408354993,1773490237551,-172.13504175,0.000187,2]
[408354994,1773490237568,-151.80577741,0.000187,2]
[408354995,1773490237579,-202.38527942,0.00018712,2]
[408354996,1773490237592,-151.0,0.00018712,2]
[408354997,1773490237604,-500.0,0.00018722,2]
[408354998,1773490237615,-500.0,0.00018722,2]
[408354999,1773490237627,-288.3240717,0.00018722,2]
[408355000,1773490237641,-199.28664865,0.00018723,2]
[408355001,1773490237656,-500.0,0.00018723,2]
[408355002,1773490237669,-500.0,0.00018723,2]
[408355003,1773490237680,-500.0,0.00018723,2]
[408355004,1773490237692,-500.0,0.00018723,2]
[408355005,1773490237702,-1080.75413898,0.00018723,2]
[408355006,1773490237712,-51.84381651,0.00018723,2]
[408355008,1773490237728,-452.27557295,0.00018723,2]
[408355010,1773490237740,-615.78020227,0.00018723,2]
[408355012,1773490237755,-500.0,0.00018723,2]
[408355015,1773490237768,-419.863559,0.00018723,2]
[408355017,1773490237780,-564.3015663,0.00018723,2]
[408355019,1773490237792,-1080.75413898,0.00018723,2]
[408355022,1773490237803,-315.62096103,0.00018723,2]
[408355024,1773490237815,-1080.75413898,0.00018723,2]
[408355026,1773490237827,-1080.75413898,0.00018723,2]
[408355029,1773490237839,-500.0,0.00018723,2]
[408355031,1773490237851,-1080.75413898,0.00018723,2]
[408355033,1773490237862,-500.0,0.00018723,2]
[408355035,1773490237873,-1080.75413898,0.00018723,2]
[408355038,1773490237885,-473.8450504,0.00018723,2]
[408355040,1773490237897,-1080.75413898,0.00018723,2]
[408355042,1773490237908,-500.0,0.00018723,2]
[408355045,1773490237920,-1080.75413898,0.00018723,2]
[408355047,1773490237931,-500.0,0.00018723,2]
[408355049,1773490237943,-954.24186986,0.00018723,2]
[408355051,1773490237956,-126.51226912,0.00018723,2]
[408355054,1773490237968,-1080.75413898,0.00018723,2]
[408355056,1773490237979,-1080.75413898,0.00018723,2]
[408355058,1773490237991,-1080.75413898,0.00018723,2]
[408355061,1773490238003,-1080.75413898,0.00018723,2]
[408355063,1773490238016,-1080.75413898,0.00018723,2]
[408355065,1773490238027,-1080.75413898,0.00018723,2]
[408355067,1773490238038,-1080.75413898,0.00018723,2]
[408355070,1773490238049,-1080.75413898,0.00018723,2]
[408355072,1773490238061,-1080.75413898,0.00018723,2]
[408355074,1773490238072,-1080.75413898,0.00018723,2]
[408355076,1773490238082,-1080.75413898,0.00018723,2]
[408355078,1773490238093,-1080.75413898,0.00018723,2]
[408355080,1773490238103,-1080.75413898,0.00018723,2]
[408355082,1773490238115,-1080.75413898,0.00018723,2]
[408355085,1773490238129,-1080.75413898,0.00018723,2]
[408355087,1773490238139,-1080.75413898,0.00018723,2]
[408355089,1773490238149,-1080.75413898,0.00018723,2]
[408355091,1773490238158,-829.53685626,0.00018723,2]
[408355093,1773490238170,-251.21728272,0.00018723,2]
[408355095,1773490238180,-1080.75413898,0.00018723,2]
[408355098,1773490238192,-1080.75413898,0.00018723,2]
[408355100,1773490238205,-1080.75413898,0.00018723,2]
[408355102,1773490238217,-1080.75413898,0.00018723,2]
[408355105,1773490238228,-1080.75413898,0.00018723,2]
[408355107,1773490238239,-1080.75413898,0.00018723,2]
[408355109,1773490238249,-1080.75413898,0.00018723,2]
[408355111,1773490238261,-1080.75413898,0.00018723,2]
[408355113,1773490238271,-1080.75413898,0.00018723,2]
[408355115,1773490238283,-1080.75413898,0.00018723,2]
[408355117,1773490238293,-322.97165703,0.00018723,2]
[408355120,1773490238311,-567.89414202,0.00018723,2]
[408355123,1773490238324,-189.88833993,0.00018723,2]
[408355125,1773490238337,-174.09166007,0.00018723,2]
[408355127,1773490238350,-906.66247891,0.00018723,2]
[408355129,1773490238362,-1080.75413898,0.00018723,2]
[408355131,1773490238372,-440.16095675,0.00018723,2]
[408355265,1773490239618,-640.59318223,0.00018723,2]
[408355267,1773490239629,-146.34681777,0.00018723,2]
[408355272,1773490239675,-934.40732121,0.00018723,2]
[408355274,1773490239686,-1080.75413898,0.00018723,2]
[408355277,1773490239697,-889.32654171,0.00018723,2]
[408355279,1773490239711,-191.42759727,0.00018723,2]
[408355281,1773490239722,-925.65240273,0.00018723,2]
[408355283,1773490239734,-155.10173625,0.00018723,2]
[408355286,1773490239745,-240.62636068,0.00018723,2]
[408355319,1773490240051,-768.71294345,0.00018723,2]
[408355321,1773490240065,-71.41483485,0.00018723,2]
[408355323,1773490240076,-1080.75413898,0.00018723,2]
[408355326,1773490240088,-1080.75413898,0.00018723,2]
[408355328,1773490240100,-1080.75413898,0.00018723,2]
[408355330,1773490240110,-1080.75413898,0.00018723,2]
[408355332,1773490240121,-1080.75413898,0.00018723,2]
[408355334,1773490240132,-1080.75413898,0.00018723,2]
[408355336,1773490240143,-1080.75413898,0.00018723,2]
[408355339,1773490240154,-1080.75413898,0.00018723,2]
[408355341,1773490240164,-1080.75413898,0.00018723,2]
[408355343,1773490240175,-1080.75413898,0.00018723,2]
[408355345,1773490240185,-1080.75413898,0.00018723,2]
[408355347,1773490240195,-1063.86735557,0.00018723,2]
[408355349,1773490240206,-1063.86735557,0.00018723,2]
[408355351,1773490240217,-1063.86735557,0.00018723,2]
[408355354,1773490240228,-1063.86735557,0.00018723,2]
[408355356,1773490240238,-1063.86735557,0.00018723,2]
[408355358,1773490240249,-1063.86735557,0.00018723,2]
[408355360,1773490240259,-1063.86735557,0.00018723,2]
[408355362,1773490240270,-1063.86735557,0.00018723,2]
[408355364,1773490240280,-1063.86735557,0.00018723,2]
[408355366,1773490240291,-1063.86735557,0.00018723,2]
[408355368,1773490240301,-1063.86735557,0.00018723,2]
[408355371,1773490240311,-1063.86735557,0.00018723,2]
[408355373,1773490240322,-1063.86735557,0.00018723,2]
[408355375,1773490240333,-1063.86735557,0.00018723,2]
[408355377,1773490240343,-1063.86735557,0.00018723,2]
[408355379,1773490240354,-1063.86735557,0.00018723,2]
[408355381,1773490240365,-1063.86735557,0.00018723,2]
[408355383,1773490240376,-1063.86735557,0.00018723,2]
[408355386,1773490240387,-1063.86735557,0.00018723,2]
[408355388,1773490240398,-1063.86735557,0.00018723,2]
[408355390,1773490240410,-1063.86735557,0.00018723,2]
[408355392,1773490240422,-1063.86735557,0.00018723,2]
[408355394,1773490240433,-1063.86735557,0.00018723,2]
[408355397,1773490240444,-1063.86735557,0.00018723,2]
[408355399,1773490240456,-1063.86735557,0.00018723,2]
[408355401,1773490240468,-1063.86735557,0.00018723,2]
[408355404,1773490240480,-1063.86735557,0.00018723,2]
[408355406,1773490240490,-1063.86735557,0.00018723,2]
[408355408,1773490240499,-1063.86735557,0.00018723,2]
[408355410,1773490240508,-1063.86735554,0.00018723,2]
[408355412,1773490240518,-1063.86735554,0.00018723,2]
[408355414,1773490240527,-1063.86735554,0.00018723,2]
[408355416,1773490240537,-500.0,0.00018723,2]
[408355418,1773490240546,-221137.0,0.00018724,2]
[408355420,1773490240557,-500.0,0.00018773,2]
[408355422,1773490240567,-500.0,0.00018773,2]
[408355424,1773490240577,-500.0,0.00018773,2]
[408355426,1773490240586,-500.0,0.00018773,2]
[408355427,1773490240596,-500.0,0.00018773,2]
[408355428,1773490240605,-500.0,0.00018773,2]
[408355433,1773490240834,-6636.86066683,0.00018783,2]
[408355436,1773490240854,-519.72193909,0.00018785,2]
[408355438,1773490240866,-500.0,0.00018785,2]
[408355440,1773490240876,-500.0,0.00018785,2]
[408355442,1773490240885,-500.0,0.00018785,2]
[408355445,1773490240895,-500.0,0.00018785,2]
[408355447,1773490240904,-2410.0,0.00018786,2]
[408355448,1773490240913,-183.30422926,0.00018787,2]
[408355451,1773490240923,-494.68846007,0.00018796,2]
[408355453,1773490240932,-1718997.28295188,0.00018797,2]
[408355628,1773490242655,-1386.51322795,0.00018797,2]
[408355629,1773490242666,-3130.45038607,0.00018797,2]
[408355630,1773490242762,-11010.80915455,0.00018797,2]
[408355631,1773490242774,-39759.43226744,0.00018797,2]
[408355632,1773490242786,-1027.23724345,0.00018797,2]
[408355669,1773490245680,-482.594,0.000187,2]
[408355670,1773490245735,-2142.72025912,0.00018673,2]
[408355671,1773490245744,-368.58090992,0.000187,2]
[408355672,1773490245754,-85732.84172169,0.00018797,2]
[408355697,1773490305227,-200.0,0.00047727,30]
[408355698,1773490305251,-200.0,0.00047727,120]
[408355699,1773490305274,-2710.1889888,0.00047727,120]
[408355700,1773490305296,-333.70554501,0.00047727,120]
[408355701,1773490305318,-198.95869205,0.00047727,30]
[408355702,1773490305340,-181.59131019,0.00047727,120]
[408355703,1773490305364,-20000.0,0.00047727,120]
[408355704,1773490305387,-279.86892042,0.00047727,60]
[408355705,1773490305412,-1161.8737,0.00047727,30]
[408355706,1773490305438,-53788.5,0.00047727,120]
[408355707,1773490305462,-157.83364519,0.00047727,120]
[408355708,1773490305486,-296.0,0.00047727,120]
[408355709,1773490305511,-24160.31975158,0.00047727,61]
[408355710,1773490305543,-220.22240039,0.00047727,91]
[408355711,1773490305576,-464.11484091,0.00047727,120]
[408355712,1773490305602,-296.58770405,0.00047727,60]
[408355713,1773490305628,-351.00334504,0.00047727,30]
[408355714,1773490305655,-957.19517127,0.00047727,30]
[408355715,1773490305695,-1301.8058397,0.00047727,30]
[408355716,1773490305728,-2691.275497,0.00047727,120]
[408355717,1773490305760,-152.26839054,0.00047727,30]
[408355718,1773490305788,-507.74712132,0.00047727,120]
[408355719,1773490305811,-166.04607923,0.00047727,60]
[408355720,1773490305842,-150.75820925,0.00047727,30]
[408355721,1773490305865,-355.13482873,0.00047727,120]
[408355722,1773490305895,-158.69021799,0.00047727,120]
[408355723,1773490305919,-151.89637531,0.00047727,120]
[408355724,1773490305943,-355.98123681,0.00047727,120]
[408355725,1773490305967,-8423.64153489,0.00047727,120]
[408355726,1773490305995,-179.30957334,0.00047727,120]
[408355727,1773490306019,-214.36010277,0.00047727,120]
[408355728,1773490306043,-1595.22662051,0.00047727,120]
[408355729,1773490306066,-2987.91412427,0.00047727,30]
[408355730,1773490306090,-170.96590017,0.00047727,30]
[408355731,1773490306114,-3701.74995608,0.00047727,30]
[408355732,1773490306136,-151.79121156,0.00047727,30]
[408355733,1773490306159,-181.88478042,0.00047727,120]
[408355734,1773490306182,-555.61722557,0.00047727,120]
[408355735,1773490306205,-8479.00365705,0.00047727,60]
[408355736,1773490306228,-4810.70397262,0.00047727,30]
[408355737,1773490306259,-1499.1077283,0.00047727,30]
[408355738,1773490306282,-311.79879375,0.00047727,120]
[408355739,1773490306305,-397.79107189,0.00047727,120]
[408355740,1773490306327,-1109.98780043,0.00047727,47]
[408355741,1773490306350,-654.66699323,0.00047727,30]
[408355742,1773490306541,-292.07553325,0.00047727,30]
[408355743,1773490306566,-623.59237561,0.00047727,30]
[408355744,1773490306591,-422.70453378,0.00047727,120]
[408355745,1773490306618,-478.90934936,0.00047727,30]
[408355746,1773490306643,-711.15546299,0.00047727,120]
[408355747,1773490306671,-2177.78195312,0.00047727,30]
[408355748,1773490306695,-1843.11466137,0.00047727,30]
[408355749,1773490306719,-410.74469833,0.00047727,30]
[408355750,1773490306748,-506.33029028,0.00047727,30]
[408355751,1773490306775,-11348.85704853,0.00047727,90]
[408355752,1773490306800,-999.999999,0.00047727,120]
[408355753,1773490306825,-6293.52,0.00047727,60]
[408355754,1773490306858,-243.0,0.00047727,120]
[408355755,1773490306888,-245.785908,0.00047727,120]
[408355756,1773490306919,-5000.0,0.00047727,38]
[408355757,1773490306962,-16902.0,0.00047727,30]
[408355758,1773490306990,-102138.0,0.00047727,60]
[408355759,1773490307019,-1342.02091223,0.00047727,120]
[408355760,1773490307043,-3552.76475717,0.00047727,120]
[408355761,1773490307067,-259.0,0.00047727,120]
[408355762,1773490307092,-371.56,0.00047727,120]
[408355763,1773490307116,-194.999999,0.00047727,120]
[408355764,1773490307140,-3888.40292873,0.00047727,120]
[408355765,1773490307164,-2683.91233528,0.00047727,120]
[408355766,1773490307188,-101481.15123744,0.00047727,120]
[408355767,1773490307212,-2000.0,0.00047727,120]
[408355768,1773490307236,-306.00400049,0.00047727,120]
[408355769,1773490307260,-1391.1772304,0.00047727,120]
[408355770,1773490307284,-166.82006821,0.00047727,120]
[408355771,1773490307307,-10989.98844264,0.00047727,120]
[408355772,1773490307331,-1999.80000002,0.00047727,120]
[408355773,1773490307354,-500.0,0.00047727,120]
[408355774,1773490307377,-2250.96574128,0.00047727,120]
[408355775,1773490307400,-1002.21640602,0.00047727,120]
[408355776,1773490307423,-1000.0,0.00047727,30]
[408355777,1773490307446,-100000.0,0.00047727,60]
[408355778,1773490307469,-104437.23,0.00047727,60]
[408355779,1773490307493,-30121.98420526,0.00047727,120]
[408355780,1773490307516,-9000.0,0.00047727,120]
[408355781,1773490307540,-162.89,0.00047727,120]
[408355782,1773490307562,-5423.86850447,0.00047727,30]
[408355783,1773490307585,-6002.4,0.00047727,30]
[408355784,1773490307609,-4454.0,0.00047727,60]
[408355785,1773490307632,-3000.0,0.00047727,120]
[408355786,1773490307654,-3000.0,0.00047727,120]
[408355787,1773490307678,-3000.0,0.00047727,120]
[408355788,1773490307700,-4065.6461699,0.00047727,120]
[408355789,1773490307726,-5000.96,0.00047727,90]
[408355790,1773490307750,-5000.0,0.00047727,120]
[408355791,1773490307775,-5000.0,0.00047727,60]
[408355792,1773490307800,-5000.0,0.00047727,60]
[408355793,1773490307825,-171.01682842,0.00047727,120]
[408355794,1773490307849,-171.01682842,0.00047727,120]
[408355795,1773490307872,-171.01682841,0.00047727,120]
[408355796,1773490307895,-536.39569752,0.00047727,120]
[408355797,1773490307921,-172.73805516,0.00047727,30]
[408355798,1773490307945,-669293.95598105,0.00047727,30]
[408355799,1773490307969,-177.0,0.00047727,30]
[408355800,1773490307994,-50000.0,0.00047727,44]
[408355801,1773490308019,-50000.0,0.00047727,45]
[408355802,1773490308046,-50000.0,0.00047727,46]
[408355803,1773490308071,-50000.0,0.00047727,47]
[408355804,1773490308096,-50000.0,0.00047727,48]
[408355805,1773490308119,-659.5501196,0.00047727,120]
[408355806,1773490308142,-302.17170593,0.00047727,120]
[408355807,1773490308166,-720.28799929,0.00047727,30]
[408355808,1773490308190,-126370.989135,0.00047727,120]
[408355809,1773490308212,-4208.85283631,0.00047727,60]
[408355810,1773490308238,-1554.43,0.00047727,30]
[408355811,1773490308270,-1554.43,0.00047727,30]
[408355812,1773490308294,-1554.43,0.00047727,30]
[408355813,1773490308318,-1554.43,0.00047727,30]
[408355814,1773490308342,-11404.0,0.00047727,120]
[408355815,1773490308366,-1554.43,0.00047727,30]
[408355816,1773490308390,-463.87,0.00047727,30]
[408355817,1773490308414,-1554.43,0.00047727,30]
[408355818,1773490308438,-1554.43,0.00047727,30]
[408355819,1773490308462,-1554.43,0.00047727,30]
[408355820,1773490308486,-20258.19268187,0.00047727,120]
[408355821,1773490308514,-1129.83326697,0.00047727,30]
[408355822,1773490308538,-5402.75435245,0.00047727,120]
[408355823,1773490308561,-1554.44,0.00047727,30]
[408355824,1773490308585,-1554.43,0.00047727,30]
[408355825,1773490308610,-200.0,0.00047727,120]
[408355826,1773490308634,-1554.43,0.00047727,30]
[408355827,1773490308658,-1554.43,0.00047727,30]
[408355828,1773490308791,-1554.43,0.00047727,30]
[408355829,1773490308836,-319.91,0.00047727,120]
[408355830,1773490308859,-1554.43,0.00047727,30]
[408355831,1773490308887,-1554.43,0.00047727,30]
[408355832,1773490308912,-1554.43,0.00047727,30]
[408355833,1773490308936,-1554.43,0.00047727,30]
[408355834,1773490309120,6228.0,0.00047727,30]
[408355835,1773490309148,5000.0,0.00047727,30]
[408355836,1773490309179,6228.0,0.00047727,30]
[408355837,1773490309207,5000.0,0.00047727,30]
[408355838,1773490309333,400.0,0.00047727,90]
[408355839,1773490311332,527.61234069,0.00047727,30]
[408355840,1773490312302,429.21803242,0.00047727,90]
[408355841,1773490316644,2000.0,0.00047727,30]
[408355842,1773490317268,278.72257417,0.00047727,30]
[408355843,1773490317513,500.0,0.00047727,30]
[408355844,1773490318190,500.0,0.00047727,30]
[408355845,1773490318793,500.0,0.00047727,30]
[408355846,1773490319309,500.0,0.00047727,30]
[408355847,1773490319817,509.07383618,0.00047727,30]
[408355848,1773490337856,-175.26,0.000224,60]
[408355849,1773490337884,-3618.0,0.00024658,120]
[408355850,1773490337910,-539.35,0.00025524,120]
[408355851,1773490337938,-365.257431,0.000269,30]
[408355852,1773490337963,-539.35,0.00027844,120]
[408355853,1773490337991,-3057.55802064,0.00031153,34]
[408355854,1773490338017,-268.850471,0.000323,30]
[408355855,1773490338042,-226.06,0.00032486,60]
[408355856,1773490338068,-200.0,0.00032877,120]
[408355857,1773490338092,-200.0,0.00032877,120]
[408355858,1773490338115,-200.0,0.00032877,120]
[408355859,1773490338139,-3282.29,0.000329,30]
[408355860,1773490338163,-233.4,0.00033,30]
[408355861,1773490338187,-34023.2856044,0.00033,30]
[408355862,1773490338210,-863.09,0.00033,30]
[408355863,1773490338234,-2661.19,0.000331,30]
[408355864,1773490338258,-171.44751872,0.00033622,30]
[408355865,1773490338282,-3282.29,0.000337,30]
[408355866,1773490338306,-233.4,0.000339,30]
[408355867,1773490338330,-863.09,0.00034,30]
[408355868,1773490338356,-1008.52,0.00034,120]
[408355869,1773490338382,-2661.19,0.000341,30]
[408355870,1773490338408,-3506.38818993,0.00034346,46]
[408355871,1773490338432,-3282.29,0.000345,30]
[408355872,1773490338457,-1008.52,0.00034618,120]
[408355873,1773490338480,-199.47,0.00034712,30]
[408355874,1773490338502,-1747.22,0.00034712,30]
[408355875,1773490338525,-373.33,0.00034712,30]
[408355876,1773490338551,-418.66869639,0.0003488,120]
[408355877,1773490338575,-863.09,0.00035,30]
[408355878,1773490338598,-181.11095633,0.00035,30]
[408355879,1773490338622,-3208.01553369,0.00035,120]
[408355880,1773490338646,-1008.52,0.00035236,120]
[408355881,1773490338670,-2661.19,0.000353,30]
[408355882,1773490338694,-150.0,0.00035322,30]
[408355883,1773490338717,-184.0,0.00035322,30]
[408355884,1773490338742,-250.0,0.00035411,120]
[408355885,1773490338765,-250.0,0.00035411,120]
[408355886,1773490338790,-169.0,0.00035411,120]
[408355887,1773490338814,-233.4,0.000355,30]
[408355888,1773490338838,-3282.29,0.000355,30]
[408355889,1773490338862,-344.08426671,0.00035589,120]
[408355890,1773490338886,-359.44255952,0.00035589,120]
[408355891,1773490338910,-1008.52,0.00035855,120]
[408355892,1773490338935,-852.267341,0.00035866,60]
[408355893,1773490338960,-3728.64826663,0.00035942,51]
[408355894,1773490338984,-432.0,0.00036,120]
[408355895,1773490339009,-863.09,0.00036,30]
[408355896,1773490339033,-1999.99,0.00036,120]
[408355897,1773490339057,-3282.29,0.000364,30]
[408355898,1773490339081,-2661.19,0.000364,30]
[408355899,1773490339104,-1008.52,0.00036473,120]
[408355900,1773490339127,-500.0,0.00037,60]
[408355901,1773490339150,-233.4,0.00037,30]
[408355902,1773490339173,-1500.0,0.00037,120]
[408355903,1773490339198,-1008.52,0.00037091,120]
[408355904,1773490339223,-168.15910439,0.000372,120]
[408355905,1773490339247,-863.09,0.000373,30]
[408355906,1773490339274,-3844.31541973,0.00037538,57]
[408355907,1773490339298,-3282.29,0.000376,30]
[408355908,1773490339323,-1008.52,0.00037709,120]
[408355909,1773490339347,-2661.19,0.000378,30]
[408355910,1773490339371,-500.0,0.00038,61]
[408355911,1773490339394,-14012.0,0.00038,120]
[408355912,1773490339418,-1500.0,0.00038,120]
[408355913,1773490339442,-213.14784105,0.000381,33]
[408355914,1773490339468,-483.79553055,0.0003818,59]
[408355915,1773490339495,-1008.52,0.00038327,120]
[408355916,1773490339519,-3282.29,0.000384,30]
[408355917,1773490339542,-1469.14,0.000386,30]
[408355918,1773490339565,-863.09,0.000386,30]
[408355919,1773490339590,-1310.41,0.00038831,120]
[408355920,1773490339616,-280.0,0.00038831,120]
[408355921,1773490339641,-150.0,0.00038831,120]
[408355922,1773490339667,-152.41,0.0003884,30]
[408355923,1773490339692,-475.54190707,0.000389,120]
[408355924,1773490339716,-2661.19,0.000389,30]
[408355925,1773490339745,-187.84369479,0.00038945,62]
[408355926,1773490339772,-1008.52,0.00038945,120]
[408355927,1773490339797,-500.0,0.00039,62]
[408355928,1773490339959,-1259.38613718,0.00039,120]
[408355929,1773490339982,-150.51,0.00039,30]
[408355930,1773490340006,-1448.37025617,0.000391,120]
[408355931,1773490340032,-4029.53215032,0.00039135,63]
[408355932,1773490340056,-3282.29,0.000393,30]
[408355933,1773490340082,-1008.52,0.00039564,120]
[408355934,1773490340110,-152.13393404,0.00039896,66]
[408355935,1773490340136,-2999.999999,0.0004,120]
[408355936,1773490340160,-500.0,0.0004,63]
[408355937,1773490340189,-161.0,0.0004,120]
[408355938,1773490340212,-162.0,0.0004,120]
[408355939,1773490340236,-17638.1574166,0.0004,120]
[408355940,1773490340259,-9642.45448626,0.0004,120]
[408355941,1773490340284,-316.39733744,0.0004,120]
[408355942,1773490340307,-1000.0,0.0004,60]
[408355943,1773490340332,-1000.0,0.0004,55]
[408355944,1773490340356,-1000.0,0.0004,55]
[408355945,1773490340380,-233.4,0.0004,30]